bitfinex/quotes_ETHUSD_20250219
["timestamp","ask_amount","ask_price","bid_price","bid_amount"]
[1739990478175,4.44481,2712.4,2711.8,3.68757]
[1739990478379,0.88477042,2712.3,2711.5,3.68798]
[1739990478683,0.8281,2711.9,2711.2,3.68829]
[1739990478882,0.76669222,2711.8,2711.3,3.68824]
[1739990479109,0.82277501,2711.8,2711.3,3.68824]
[1739990479495,0.82277501,2711.8,2711.3,3.68818]
[1739990481108,0.82277501,2711.8,2711.3,7.37636]
[1739990481301,0.82277501,2711.8,2711.3,3.68818]
[1739990482935,0.7753,2711.7,2711.3,3.68818]
[1739990483334,0.05508507,2711.6,2711.3,3.68818]
[1739990483508,0.05508507,2711.6,2711.3,3.68819]
[1739990483714,0.05508507,2711.6,2711.3,7.37637]
[1739990484007,0.05508507,2711.6,2711.5,3.68799]
[1739990484357,0.05508507,2711.6,2711.3,3.68818]
[1739990484553,0.05508507,2711.6,2710.9,4.47041]
[1739990484725,0.8059,2711.5,2711.0,3.68857]
[1739990485124,0.05449206,2711.4,2710.6,0.812]
[1739990485327,0.05449206,2711.4,2710.8,3.68893]
[1739990485531,0.05449206,2711.4,2710.9,3.6887]
[1739990485734,0.92330432,2711.4,2710.9,3.6887]
[1739990487879,0.92330432,2711.4,2710.5,5.37]
[1739990487880,0.7896,2711.3,2710.5,3.68923]
[1739990488165,0.7896,2711.3,2710.4,4.47737]
[1739990488166,3.68869,2711.0,2710.4,3.68942]
[1739990488367,3.94102216,2711.1,2710.4,3.68942]
[1739990488673,0.8168944,2711.0,2710.5,3.68928]
[1739990488874,0.7766,2710.9,2710.5,3.68928]
[1739990489021,0.83047132,2710.9,2710.5,3.68928]
[1739990489222,0.83047132,2710.9,2710.3,3.68951]
[1739990489420,0.83047132,2710.9,2710.4,3.68949]
[1739990489636,1.67382489,2710.9,2710.3,3.68951]
[1739990489839,3.68895,2710.8,2710.1,3.68981]
[1739990490128,0.7766,2710.7,2710.4,3.68948]
[1739990490471,0.05323963,2710.6,2710.4,3.68948]
[1739990490836,0.05323963,2710.6,2710.5,3.68935]
[1739990491358,0.05323963,2710.6,2710.4,3.68948]
[1739990491765,0.05323963,2710.6,2710.4,7.37887]
[1739990491966,0.05323963,2710.6,2710.5,3.68935]
[1739990492373,0.7535,2710.9,2710.6,3.68919]
[1739990492671,0.7535,2710.9,2710.8,3.68894]
[1739990492879,0.7534,2711.2,2711.1,3.68842]
[1739990493061,5.36,2711.3,2711.2,3.6884]
[1739990493286,5.36,2711.3,2711.1,3.68842]
[1739990493672,0.7791,2711.2,2711.1,3.68842]
[1739990494203,0.7791,2711.2,2711.0,3.68866]
[1739990494612,0.7791,2711.2,2710.8,3.6889]
[1739990494811,0.04950281,2711.1,2710.7,3.68904]
[1739990495105,0.04950281,2711.1,2710.8,3.68885]
[1739990495471,0.04950281,2711.1,2710.9,3.68871]
[1739990495659,0.04950281,2711.1,2710.8,3.68885]
[1739990495865,0.04950281,2711.1,2711.0,3.68867]
[1739990496063,6.1667,2711.3,2711.0,3.68867]
[1739990496264,0.04952679,2711.1,2711.0,3.68867]
[1739990496509,6.1667,2711.3,2711.0,3.68867]
[1739990496707,0.8067,2711.5,2711.1,3.68851]
[1739990497003,8.51142216,2712.0,2711.4,3.68813]
[1739990497207,0.8067,2711.9,2711.5,3.68799]
[1739990497701,0.8067,2711.9,2711.6,3.68785]
[1739990498411,0.8067,2711.9,2711.7,3.68765]
[1739990498713,0.8067,2711.9,2711.7,3.68763]
[1739990499985,0.8067,2711.9,2711.5,3.68787]
[1739990500506,0.8067,2711.9,2711.6,3.68785]
[1739990501180,0.8067,2711.9,2711.4,3.6881]
[1739990501368,1.20251222,2711.9,2711.4,3.6881]
[1739990502213,0.7742,2711.7,2710.8,3.68885]
[1739990502391,3.15142216,2711.8,2710.8,3.68885]
[1739990502392,5.36,2711.8,2711.6,3.68782]
[1739990502709,0.7929,2712.0,2711.9,3.68745]
[1739990502871,0.7929,2712.0,2711.3,3.0]
[1739990503071,0.7929,2712.0,2711.6,3.68772]
[1739990503275,0.7929,2712.0,2711.4,3.68802]
[1739990503578,3.68746,2711.9,2711.2,12.74659]
[1739990503786,3.68746,2711.9,2711.2,9.05828]
[1739990504298,3.6876,2711.8,2711.2,5.37]
[1739990504561,1.18566,2711.7,2711.2,5.37]
[1739990504725,4.8734,2711.7,2711.2,5.37]
[1739990505130,3.68786,2711.6,2711.2,5.37]
[1739990505649,3.68786,2711.6,2711.0,3.68857]
[1739990507284,0.7767,2711.5,2710.8,3.68889]
[1739990507576,0.8065,2711.3,2710.6,12.05914]
[1739990507873,0.8065,2711.3,2710.7,3.68908]
[1739990508233,0.8065,2711.3,2710.6,3.68914]
[1739990508440,0.8065,2711.3,2710.7,3.689]
[1739990509078,0.8065,2711.3,2710.8,3.6889]
[1739990509274,0.8065,2711.3,2711.0,3.68862]
[1739990509470,0.8065,2711.3,2711.0,3.68855]
[1739990509664,0.8323,2711.5,2711.0,3.68855]
[1739990509836,0.8323,2711.5,2711.2,3.68832]
[1739990510031,0.8323,2711.5,2711.0,8.19996]
[1739990510232,0.8323,2711.5,2711.1,3.68846]
[1739990510783,0.8323,2711.5,2711.2,3.68835]
[1739990512177,0.8323,2711.5,2711.1,3.68845]
[1739990512377,0.8323,2711.5,2711.0,3.68863]
[1739990512757,0.8323,2711.5,2711.1,3.68853]
[1739990513978,0.8323,2711.5,2711.1,3.68845]
[1739990517381,0.8323,2711.5,2711.2,3.6884]
[1739990517578,0.8323,2711.5,2711.3,3.68813]
[1739990518156,0.8323,2711.5,2711.4,3.68813]
[1739990518558,0.8129,2711.8,2711.1,3.68842]
[1739990518767,0.8129,2711.8,2711.3,4.50077]
[1739990518973,0.8129,2711.8,2711.3,8.18894]
[1739990519537,0.8129,2711.8,2711.4,3.6881]
[1739990520196,0.8129,2711.8,2711.1,3.68845]
[1739990520398,0.8129,2711.8,2711.2,3.6884]
[1739990520574,1.631669,2711.8,2711.2,3.6884]
[1739990520900,1.631669,2711.8,2711.4,3.68806]
[1739990521099,0.8129,2711.8,2711.4,3.68806]
[1739990521658,0.67,2711.5,2711.4,3.68806]
[1739990521861,0.67,2711.5,2711.3,3.68826]
[1739990522258,0.67,2711.5,2711.4,3.68813]
[1739990522506,0.67,2711.5,2711.4,7.47143]
[1739990522663,0.67,2711.5,2711.4,8.587399]
[1739990523208,0.8133,2712.0,2711.4,8.587399]
[1739990523425,0.7588,2712.2,2711.9,3.68738]
[1739990523594,0.7588,2712.2,2711.9,3.68736]
[1739990524310,0.7934,2712.5,2712.1,3.68717]
[1739990524624,5.36,2712.7,2712.2,3.68702]
[1739990524794,6.1493,2712.7,2712.3,3.68684]
[1739990525121,6.1493,2712.7,2712.2,3.68702]
[1739990525122,6.1493,2712.7,2712.4,3.6867]
[1739990525331,0.67,2712.5,2712.4,3.6867]
[1739990525486,0.67,2712.5,2712.4,4.424064]
[1739990526795,0.7893,2713.1,2712.6,3.6864]
[1739990527613,4.47519,2713.1,2712.4,7.37334]
[1739990527888,4.47519,2713.1,2712.5,3.68662]
[1739990528321,0.7893,2713.1,2712.5,3.68662]
[1739990528509,2.45650722,2713.1,2712.5,3.68662]
[1739990528723,0.7893,2713.1,2712.6,7.37279]
[1739990529725,0.7893,2713.1,2712.6,3.68638]
[1739990530940,4.47513,2713.1,2712.5,3.68662]
[1739990531233,3.68612,2712.9,2712.3,3.68683]
[1739990531748,3.68612,2712.9,2712.3,7.37366]
[1739990532036,0.8067,2712.8,2712.3,3.68683]
[1739990532343,0.8067,2712.8,2712.3,7.37362]
[1739990532637,0.8067,2712.8,2712.4,3.68676]
[1739990532836,0.67,2712.6,2712.4,3.68676]
[1739990534102,0.67,2712.6,2712.3,3.68679]
[1739990534291,0.67,2712.6,2712.3,7.37361]
[1739990535233,0.67,2712.6,2712.3,3.68679]
[1739990535438,0.67,2712.6,2712.4,3.68665]
[1739990536339,0.8067,2712.8,2712.4,3.68665]
[1739990538508,0.8067,2712.8,2712.0,8.13441]
[1739990538509,3.68639,2712.7,2712.0,8.13441]
[1739990538820,0.765,2712.4,2712.2,3.68696]
[1739990539020,0.765,2712.4,2711.9,0.7375]
[1739990539021,0.67,2712.5,2712.4,3.68677]
[1739990540052,0.67,2712.5,2712.4,4.49497]
[1739990540232,0.765,2713.0,2712.7,3.68632]
[1739990540431,0.67,2712.8,2712.7,3.68632]
[1739990540752,0.67,2712.8,2712.6,3.68647]
[1739990542759,0.67,2712.8,2712.7,3.68636]
[1739990543057,0.67,2712.8,2712.6,3.68647]
[1739990543226,0.67,2712.8,2712.6,7.3729]
[1739990543433,0.67,2712.8,2712.7,3.68636]
[1739990543761,0.67,2712.8,2712.7,4.423639]
[1739990544522,0.7951,2713.2,2712.8,3.6862]
[1739990544722,0.7951,2713.2,2712.8,7.37235]
[1739990544921,0.7951,2713.2,2712.8,3.68615]
[1739990545123,0.7951,2713.2,2712.7,3.68625]
[1739990545362,9.04554,2713.4,2712.9,4.45568]
[1739990545363,6.1461,2713.4,2712.9,4.45568]
[1739990545664,6.1461,2713.4,2712.9,3.68608]
[1739990545874,5.36,2713.4,2713.0,3.68589]
[1739990546173,5.36,2713.4,2713.1,3.6858]
[1739990546351,5.36,2713.4,2713.0,3.68583]
[1739990547467,5.36,2713.4,2713.1,3.68573]
[1739990548571,3.6849,2713.8,2713.2,3.6856]
[1739990548874,0.7713,2713.7,2713.2,3.6856]
[1739990549428,4.45636,2713.7,2713.2,3.6856]
[1739990550292,3.6852,2713.6,2713.1,0.7636]
[1739990550661,3.6852,2713.6,2713.1,4.44932]
[1739990551376,3.68535,2713.5,2712.8,0.8021]
[1739990551600,4.44704,2713.5,2712.9,3.68603]
[1739990551948,4.44704,2713.5,2712.9,3.68103]
[1739990553408,3.68541,2713.4,2712.9,3.68607]
[1739990553583,4.44698,2713.5,2713.0,3.68595]
[1739990553781,0.8946277,2713.4,2713.0,3.68595]
[1739990554109,4.5800577,2713.4,2712.9,3.68608]
[1739990554310,0.8946277,2713.4,2712.9,3.68608]
[1739990554617,0.8946277,2713.4,2712.9,3.68602]
[1739990554808,0.8946277,2713.4,2713.0,3.68593]
[1739990554982,4.44699,2713.5,2713.0,3.68593]
[1739990556624,3.68541,2713.4,2713.0,3.68593]
[1739990556972,0.03982321,2713.3,2713.0,3.68593]
[1739990558121,0.7617,2713.5,2713.2,3.68558]
[1739990558292,0.03991002,2713.4,2713.2,3.68558]
[1739990558492,4.4822,2713.7,2713.1,7.37144]
[1739990558694,3.72518767,2713.6,2713.1,3.68572]
[1739990559422,3.72522767,2713.6,2713.1,3.68571]
[1739990559722,3.68527,2713.5,2713.0,3.68593]
[1739990559927,0.03991002,2713.4,2713.0,3.68593]
[1739990560219,0.8085,2713.3,2712.9,3.68606]
[1739990560374,0.8085,2713.3,2712.8,0.8021]
[1739990560576,0.03969284,2713.2,2713.1,3.68579]
[1739990560901,0.8073,2713.5,2713.1,3.68579]
[1739990561119,0.03984516,2713.4,2713.1,3.68579]
[1739990561499,0.03984516,2713.4,2713.0,3.68583]
[1739990561827,0.03984516,2713.4,2713.1,3.68571]
[1739990562185,0.03984516,2713.4,2713.0,3.68594]
[1739990563425,0.67,2713.2,2713.0,3.68594]
[1739990563623,0.03984516,2713.4,2713.0,3.68594]
[1739990563828,0.03984516,2713.4,2713.1,3.68571]
[1739990564924,0.03984516,2713.4,2712.9,3.68606]
[1739990564925,4.17849368,2713.4,2712.9,3.68603]
[1739990565130,4.17849368,2713.4,2712.8,3.68622]
[1739990565293,4.17849368,2713.4,2712.6,0.7554]
[1739990565294,0.7596,2713.2,2712.6,4.44187]
[1739990565499,0.7596,2713.2,2712.8,3.68622]
[1739990565708,12.19643216,2713.7,2713.0,3.68588]
[1739990565709,0.03972444,2713.1,2713.0,3.68588]
[1739990565893,0.8324,2713.5,2713.0,4.48118]
[1739990566226,0.03959289,2713.1,2713.0,4.48118]
[1739990566434,0.8324,2713.5,2713.2,3.68566]
[1739990566725,6.1708,2713.7,2713.2,3.68566]
[1739990566937,6.1708,2713.7,2713.1,3.6857]
[1739990567090,3.68516,2713.6,2713.1,3.6857]
[1739990567296,7.37037,2713.6,2713.1,3.6857]
[1739990567597,3.68539,2713.5,2713.0,0.7953]
[1739990568001,3.68539,2713.5,2713.0,4.48125]
[1739990568659,0.03978694,2713.4,2713.0,4.48125]
[1739990569055,3.68515,2713.6,2713.0,4.48125]
[1739990569258,0.03971078,2713.3,2713.0,4.48125]
[1739990569647,3.68515,2713.6,2713.1,3.68577]
[1739990569963,0.8108,2713.7,2713.3,3.6855]
[1739990570261,0.03971424,2713.5,2713.4,3.68535]
[1739990570565,6.1515,2713.9,2713.5,3.68527]
[1739990570768,0.7915,2713.9,2713.5,3.68527]
[1739990570932,0.7915,2713.9,2713.6,3.68513]
[1739990571549,0.826,2714.2,2713.4,0.7769]
[1739990571863,0.826,2714.2,2713.7,3.68489]
[1739990572017,5.18143,2714.2,2713.8,3.68486]
[1739990572214,0.03969681,2714.1,2713.8,3.68486]
[1739990572473,0.03969681,2714.1,2713.9,4.49732]
[1739990572823,5.36,2714.3,2713.9,4.49732]
[1739990573060,0.03957786,2714.0,2713.9,4.49732]
[1739990573279,5.36,2714.3,2713.9,4.49732]
[1739990573426,0.03957786,2714.0,2713.9,4.49732]
[1739990573625,0.03957786,2714.0,2713.9,0.8127]
[1739990573825,5.36,2714.3,2713.9,0.8127]
[1739990574052,0.03957786,2714.0,2713.9,4.49742]
[1739990574221,5.36,2714.3,2713.9,4.49742]
[1739990574735,0.04002007,2714.2,2713.9,8.18208]
[1739990574935,5.36,2714.3,2714.0,3.68458]
[1739990575118,0.03994395,2714.1,2713.9,0.8127]
[1739990575318,5.36,2714.3,2713.9,4.49736]
[1739990575565,0.03986782,2714.0,2713.9,4.49736]
[1739990575764,5.36,2714.3,2714.0,3.68452]
[1739990575965,5.36,2714.3,2714.1,3.68446]
[1739990576262,0.7524,2714.5,2714.1,3.68446]
[1739990576421,0.7524,2714.5,2713.9,1.630921]
[1739990576764,0.7524,2714.5,2714.0,3.68457]
[1739990577130,6.36932805,2714.8,2713.9,0.8127]
[1739990577131,0.74332805,2714.8,2713.9,0.8127]
[1739990577323,1.55992805,2714.8,2714.3,4.48945]
[1739990577519,1.55992805,2714.8,2714.3,4.4894]
[1739990577763,0.8166,2714.8,2714.3,4.4894]
[1739990577964,4.802604,2714.8,2714.3,4.4894]
[1739990578459,8.486134,2714.8,2714.3,4.4894]
[1739990578770,3.68377,2714.7,2714.1,0.8053]
[1739990579137,8.486134,2714.8,2714.1,4.48968]
[1739990579342,0.04047542,2714.6,2714.2,3.68425]
[1739990579651,8.486134,2714.8,2714.2,3.68425]
[1739990579900,12.169714,2714.8,2714.2,3.68425]
[1739990580071,0.03767496,2714.7,2714.2,3.68425]
[1739990580904,3.72137496,2714.7,2714.2,3.68425]
[1739990581204,0.03767496,2714.7,2714.6,4.48908]
[1739990581713,0.03891734,2714.7,2714.6,4.48908]
[1739990581866,0.8166,2715.2,2714.8,3.6834]
[1739990582207,0.0392217,2715.1,2714.8,3.6834]
[1739990582569,3.8166,2715.3,2714.8,3.6834]
[1739990582906,3.8166,2715.3,2714.6,4.48899]
[1739990582907,0.03919947,2715.0,2714.7,3.68356]
[1739990583112,0.03935162,2715.2,2714.7,4.500815]
[1739990583484,7.49944,2715.3,2714.8,3.68351]
[1739990583687,0.03927555,2715.1,2714.8,3.68351]
[1739990583909,7.49944,2715.3,2714.7,0.817255]
[1739990584116,7.49944,2715.3,2714.7,7.36707]
[1739990584518,0.03935162,2715.2,2714.7,7.36708]
[1739990584703,0.03935162,2715.2,2714.7,3.68351]
[1739990585339,0.03935162,2715.2,2714.8,3.6835]
[1739990585629,4.49944,2715.3,2714.8,3.6835]
[1739990585827,0.03927555,2715.1,2714.8,3.6835]
[1739990586132,0.03919947,2715.0,2714.8,3.6835]
[1739990586430,4.49943,2715.3,2714.8,4.13238]
[1739990586630,0.03912338,2714.9,2714.8,4.13238]
[1739990586932,0.03917723,2714.9,2714.8,4.13238]
[1739990587278,3.68284,2715.3,2714.8,4.13238]
[1739990587435,7.50706,2715.5,2714.8,4.93908]
[1739990587436,0.03917723,2714.9,2714.8,4.93908]
[1739990587592,4.45655,2715.7,2714.9,3.6833]
[1739990587793,4.45655,2715.7,2715.1,3.68307]
[1739990588733,3.68256,2715.6,2715.0,7.36639]
[1739990588884,3.68256,2715.6,2715.1,0.736639]
[1739990589228,3.68256,2715.5,2715.0,3.49756]
[1739990590230,0.8215,2715.3,2714.8,1.25558]
[1739990590435,0.8215,2715.3,2714.8,4.93902]
[1739990590600,0.03776374,2715.2,2714.8,4.93902]
[1739990591057,0.8215,2715.3,2714.8,4.93902]
[1739990591203,0.03769312,2715.1,2714.8,4.93902]
[1739990591518,0.03762248,2715.0,2714.9,3.68331]
[1739990591708,0.8215,2715.3,2714.9,5.082543]
[1739990591908,0.8215,2715.3,2714.9,1.399233]
[1739990591909,0.03908873,2715.0,2714.9,1.399233]
[1739990592238,0.8215,2715.3,2714.9,1.399233]
[1739990592552,0.8215,2715.3,2714.8,4.93899]
[1739990592846,0.03924085,2715.2,2714.8,4.93899]
[1739990593142,4.50433,2715.3,2714.8,4.93899]
[1739990593328,0.03924085,2715.2,2714.8,4.49011]
[1739990593510,4.50433,2715.3,2714.8,4.49011]
[1739990593707,3.72222085,2715.2,2714.7,5.37]
[1739990594110,3.72222085,2715.2,2714.7,9.05358]
[1739990594344,0.03924085,2715.2,2714.8,7.36691]
[1739990594549,0.8215,2715.3,2714.8,3.68342]
[1739990594774,0.03916479,2715.1,2714.8,3.68342]
[1739990594909,4.50435,2715.3,2714.8,3.68342]
[1739990595109,0.03924085,2715.2,2714.8,3.68342]
[1739990595309,4.50435,2715.3,2714.8,3.68342]
[1739990595657,0.03924085,2715.2,2714.8,3.68342]
[1739990595835,0.03924085,2715.2,2714.9,4.51096]
[1739990596020,3.6829,2715.3,2714.9,0.8276]
[1739990596669,0.03924085,2715.2,2714.9,0.8276]
[1739990597012,3.6829,2715.3,2714.9,0.8276]
[1739990597504,3.72223085,2715.2,2714.9,0.8276]
[1739990597903,0.03924085,2715.2,2714.9,0.8276]
[1739990598108,3.68284,2715.3,2714.9,0.8276]
[1739990598540,0.03924085,2715.2,2714.9,0.8276]
[1739990598744,3.68284,2715.3,2714.9,0.8276]
[1739990598933,0.03924085,2715.2,2714.9,0.8276]
[1739990599130,3.68304,2715.2,2714.7,0.7541]
[1739990599359,3.68304,2715.2,2714.7,4.43767]
[1739990599360,0.0366542,2715.1,2714.7,4.43767]
[1739990600758,0.0366542,2715.1,2714.8,3.68349]
[1739990600961,3.68278,2715.4,2714.8,3.68349]
[1739990601150,0.03693291,2715.3,2714.8,3.68349]
[1739990601665,3.71977291,2715.3,2714.9,0.7595]
[1739990603474,3.68309,2715.2,2714.9,0.7595]
[1739990603830,0.03679166,2715.1,2714.9,0.7595]
[1739990604867,3.6831,2715.1,2714.9,0.7595]
[1739990605030,0.03672103,2715.0,2714.9,0.7595]
[1739990605631,3.68302,2715.2,2714.9,0.7595]
[1739990605831,3.68302,2715.2,2714.7,3.68362]
[1739990605832,0.03672103,2715.0,2714.7,4.46462]
[1739990606043,4.47022,2715.2,2714.7,4.46462]
[1739990606675,0.03679166,2715.1,2714.7,8.14816]
[1739990607045,0.03679166,2715.1,2714.7,8.14815]
[1739990607276,0.03679166,2715.1,2714.7,4.46457]
[1739990607569,3.71991166,2715.1,2714.7,0.781]
[1739990607755,0.03679166,2715.1,2714.7,0.781]
[1739990608077,0.03679166,2715.1,2714.7,4.46458]
[1739990608568,4.47018,2715.2,2714.7,4.46458]
[1739990608768,4.47018,2715.2,2714.8,3.68351]
[1739990608971,4.47018,2715.2,2714.7,4.46458]
[1739990609172,8.15327,2715.2,2714.7,4.46458]
[1739990609376,4.47018,2715.2,2714.7,4.46458]
[1739990611177,3.68315,2715.1,2714.7,0.781]
[1739990611377,4.47019,2715.2,2714.7,4.46464]
[1739990612860,3.68311,2715.1,2714.7,0.781]
[1739990614077,4.498426,2715.1,2714.6,3.68369]
[1739990614248,3.68311,2715.1,2714.6,3.68369]
[1739990615891,3.68311,2715.1,2714.6,7.36739]
[1739990616204,3.68311,2715.1,2714.6,3.68368]
[1739990617151,3.68311,2715.1,2714.5,4.51549]
[1739990617787,0.7872,2715.2,2714.5,0.8316]
[1739990617991,3.68339,2714.9,2714.5,0.8316]
[1739990621256,3.68378,2714.6,2714.3,0.7879]
[1739990621566,0.7935,2714.2,2713.4,0.7879]
[1739990621879,3.0,2714.1,2713.5,3.68518]
[1739990622061,0.7935,2714.2,2713.6,3.68513]
[1739990622255,0.7935,2714.2,2713.7,0.7879]
[1739990622563,4.47786,2714.2,2713.7,0.7879]
[1739990622882,6.68415,2714.4,2713.7,4.4728]
[1739990623056,3.68415,2714.4,2713.7,0.7879]
[1739990623255,3.68438,2714.2,2713.7,0.7879]
[1739990623797,4.4781,2714.0,2713.5,0.7879]
[1739990624203,4.4781,2714.0,2713.3,4.47344]
[1739990624204,3.68481,2713.9,2713.3,4.47344]
[1739990624513,3.68481,2713.9,2713.3,8.15891]
[1739990624844,3.68481,2713.9,2713.3,9.511801]
[1739990625194,3.68481,2713.9,2713.4,3.68537]
[1739990625392,3.68449,2714.1,2713.4,3.68537]
[1739990625581,7.36907,2714.1,2713.4,3.68537]
[1739990625891,3.68463,2714.0,2713.4,3.68537]
[1739990626097,3.68463,2714.0,2713.4,4.6365331]
[1739990626394,0.8249,2714.2,2713.4,0.9511631]
[1739990626627,7.36904,2714.1,2713.5,3.6852]
[1739990626753,3.68448,2714.1,2713.5,3.6852]
[1739990627355,0.8183,2714.4,2713.9,0.7914]
[1739990627661,5.36,2714.6,2713.9,0.7914]
[1739990627662,1.0843,2714.6,2714.0,3.68447]
[1739990627859,1.988654,2714.6,2714.0,3.68447]
[1739990628073,1.988654,2714.6,2714.1,3.68437]
[1739990628258,0.8183,2714.6,2714.2,3.68423]
[1739990628457,0.7905,2714.8,2714.3,4.44352]
[1739990628998,0.7905,2714.8,2714.3,0.7594]
[1739990629170,3.68366,2714.7,2714.3,0.7594]
[1739990630661,4.5730879,2714.7,2714.3,0.7594]
[1739990630859,0.8894279,2714.7,2714.0,0.7594]
[1739990631204,3.68415,2714.4,2713.7,3.68497]
[1739990631500,4.47475,2714.3,2713.7,3.68497]
[1739990633095,0.7905,2714.3,2713.8,3.68485]
[1739990633404,4.4747,2714.3,2713.7,3.68497]
[1739990635096,4.4747,2714.3,2713.7,3.68493]
[1739990635371,5.290585,2714.3,2713.7,3.68493]
[1739990635613,3.68435,2714.2,2713.7,3.68493]
[1739990636815,1.606385,2714.3,2713.7,3.68493]
[1739990636816,5.290585,2714.3,2713.7,3.68493]
[1739990637025,0.7905,2714.3,2713.8,3.68475]
[1739990637988,4.47475,2714.3,2713.8,3.68475]
[1739990638172,3.68433,2714.2,2713.7,3.68499]
[1739990638377,7.36874,2714.2,2713.6,4.44453]
[1739990638686,3.68433,2714.2,2713.6,4.44447]
[1739990639001,3.68433,2714.2,2713.6,8.12953]
[1739990639369,3.68433,2714.2,2713.6,4.44446]
[1739990639805,7.36874,2714.2,2713.6,4.44446]
[1739990640027,3.68433,2714.2,2713.6,4.44445]
[1739990640302,4.47469,2714.3,2713.7,3.68493]
[1739990640506,0.7905,2714.3,2713.7,3.68493]
[1739990640702,0.7905,2714.3,2713.8,3.68486]
[1739990641959,4.47471,2714.3,2713.7,3.68493]
[1739990642153,4.4747,2714.3,2713.8,3.68483]
[1739990642517,4.4747,2714.3,2713.7,3.68493]
[1739990642717,0.7905,2714.3,2713.8,3.6848]
[1739990643318,0.7905,2714.3,2713.7,3.68492]
[1739990643750,0.7905,2714.3,2713.8,3.68484]
[1739990644472,4.4747,2714.3,2713.8,3.68484]
[1739990645140,4.4747,2714.3,2713.6,4.44451]
[1739990645480,3.68439,2714.2,2713.6,4.44445]
[1739990645682,3.68439,2714.2,2713.6,8.12948]
[1739990646039,4.4747,2714.3,2713.7,3.68489]
[1739990646250,4.4747,2714.3,2713.7,3.685]
[1739990647415,7.36822,2714.4,2713.8,4.48558]
[1739990647571,3.6842,2714.3,2713.8,4.48558]
[1739990647773,4.4583,2714.3,2713.8,4.48558]
[1739990648678,0.7741,2714.3,2714.1,3.68442]
[1739990648878,0.8038,2714.5,2714.1,3.6844]
[1739990650750,0.8038,2714.5,2714.2,3.6843]
[1739990651364,0.8038,2714.5,2714.1,3.6844]
[1739990652591,0.8038,2714.5,2714.2,3.68425]
[1739990652894,0.8038,2714.5,2714.1,3.6844]
[1739990653403,0.8038,2714.5,2714.2,3.68424]
[1739990653701,0.8038,2714.5,2714.1,3.6844]
[1739990655060,0.8038,2714.5,2714.2,3.68426]
[1739990655895,0.8038,2714.5,2713.9,3.68464]
[1739990656103,0.8038,2714.5,2714.1,3.68446]
[1739990656664,0.8038,2714.5,2714.1,3.68433]
[1739990656859,0.8038,2714.5,2714.2,3.68424]
[1739990658768,0.8038,2714.5,2714.4,3.68405]
[1739990659107,0.7703,2714.9,2714.4,3.68396]
[1739990659306,0.7703,2714.9,2714.5,3.68382]
[1739990660175,0.7703,2714.9,2714.3,3.68418]
[1739990660369,0.7703,2714.9,2714.5,3.68391]
[1739990664709,0.7703,2714.9,2714.3,3.68418]
[1739990664710,0.7703,2714.9,2714.2,3.93375287]
[1739990664927,0.7674,2715.2,2714.8,3.68343]
[1739990665908,0.7674,2715.2,2714.7,3.68361]
[1739990665909,4.45039,2715.2,2714.7,3.68361]
[1739990666109,4.45039,2715.2,2714.6,3.6837]
[1739990666907,4.45039,2715.2,2714.7,3.68364]
[1739990667296,0.7674,2715.2,2714.8,3.68338]
[1739990667470,0.7674,2715.2,2714.9,3.68333]
[1739990668109,0.7674,2715.2,2714.8,4.5147]
[1739990669017,4.45037,2715.2,2714.6,0.7887]
[1739990669313,4.45037,2715.2,2714.7,3.68363]
[1739990670689,0.7674,2715.2,2714.7,3.68363]
[1739990671720,0.7674,2715.2,2714.7,3.68356]
[1739990672122,4.45038,2715.2,2714.7,3.68356]
[1739990678449,0.7674,2715.2,2714.7,3.68356]
[1739990678845,4.4504,2715.2,2714.7,3.68356]
[1739990680374,0.96604431,2715.2,2714.5,3.68381]
[1739990680522,3.68328,2715.0,2714.5,3.68381]
[1739990680717,1.52719315,2714.9,2714.1,9.85094]
[1739990680936,1.52719315,2714.5,2713.9,3.68464]
[1739990681192,1.34239315,2714.1,2713.5,9.81837]
[1739990681486,0.7946,2714.0,2713.4,3.68534]
[1739990681667,0.7946,2714.0,2713.5,3.68526]
[1739990681668,4.47921,2714.0,2713.5,3.68526]
[1739990682659,0.7946,2714.0,2713.5,3.68526]
[1739990683022,0.7946,2714.0,2713.5,3.68517]
[1739990683420,0.7946,2714.0,2713.5,7.37038]
[1739990684149,0.7946,2714.0,2713.6,3.68504]
[1739990684815,0.7946,2714.0,2713.5,3.68517]
[1739990686267,0.67,2713.9,2713.5,3.68517]
[1739990688849,0.67,2713.9,2713.6,3.68506]
[1739990689257,0.67,2713.9,2713.5,3.68517]
[1739990689762,0.67,2713.9,2713.5,7.37036]
[1739990690280,0.7946,2714.0,2713.5,7.37036]
[1739990691177,0.7946,2714.0,2713.5,3.68517]
[1739990691339,0.7946,2714.0,2713.5,7.37037]
[1739990691539,0.7946,2714.0,2713.5,3.68517]
[1739990691953,0.7946,2714.0,2713.5,7.37037]
[1739990693869,0.7946,2714.0,2713.6,3.68511]
[1739990695906,0.7946,2714.0,2713.5,3.68517]
[1739990696199,0.7845,2713.9,2713.2,3.68564]
[1739990696401,3.68512,2713.7,2713.1,3.68576]
[1739990696568,0.7845,2713.6,2713.1,3.68576]
[1739990696768,3.68529,2713.5,2712.8,3.68614]
[1739990696988,3.68529,2713.5,2712.9,3.68603]
[1739990696989,0.7845,2713.4,2712.9,3.68603]
[1739990697182,0.7538,2713.3,2712.8,3.68614]
[1739990697584,0.7538,2713.3,2712.8,3.68613]